fUST/lending_fUST_20250610
["ID","MTS","AMOUNT","RATE_DAILY","PERIOD"]
[365176729,1749514251705,-503.27683097,0.00023473,2]
[365176730,1749514251714,-500.0,0.00023473,2]
[365176731,1749514251723,-501.29992392,0.00023473,2]
[365176732,1749514251732,-500.0,0.00023473,2]
[365176733,1749514251742,-1000.0,0.00023495,2]
[365176734,1749514251751,-115664.29721,0.00023499,2]
[365176735,1749514251760,-8958.33920323,0.000235,2]
[365176736,1749514251769,-151.0,0.000235,7]
[365176737,1749514251779,-151.0,0.000235,7]
[365176738,1749514251788,-151.0,0.000235,7]
[365176739,1749514251798,-287.080415,0.000235,7]
[365176740,1749514251808,-287.080415,0.000235,7]
[365176741,1749514251817,-48462.23,0.000235,2]
[365176742,1749514251827,-151.0,0.000235,7]
[365176743,1749514251836,-168.0,0.00023537,2]
[365176744,1749514251845,-280.0,0.00023555,4]
[365176745,1749514251855,-300.0,0.00023555,4]
[365176746,1749514251865,-300.0,0.00023555,4]
[365176747,1749514251879,-460.0,0.00023555,4]
[365176748,1749514251889,-300.0,0.00023555,4]
[365176749,1749514251900,-280.0,0.00023555,4]
[365176750,1749514251909,-460.0,0.00023555,4]
[365176751,1749514251918,-460.0,0.00023555,4]
[365176752,1749514251928,-460.0,0.00023555,4]
[365176753,1749514251937,-825.53,0.00023555,4]
[365176754,1749514251947,-2884.64,0.00023555,4]
[365176755,1749514251957,-460.0,0.00023555,4]
[365176756,1749514251967,-460.0,0.00023555,2]
[365176757,1749514251977,-795.04,0.00023555,4]
[365176758,1749514251986,-732.49,0.00023555,4]
[365176759,1749514251995,-1064.67,0.00023555,4]
[365176760,1749514252005,-460.0,0.00023555,4]
[365176761,1749514252015,-745.9,0.00023555,4]
[365176762,1749514252024,-460.0,0.00023555,4]
[365176763,1749514252033,-725.5,0.00023555,4]
[365176764,1749514252042,-839.2,0.00023555,4]
[365176765,1749514252051,-709.99682384,0.00023555,9]
[365176766,1749514252061,-151.0,0.00023556,7]
[365176767,1749514252071,-12500.0,0.00023561,3]
[365176768,1749514252082,-2608.93336895,0.00023561,3]
[365176769,1749514252094,-151.0,0.00023561,7]
[365176770,1749514252103,-151.0,0.00023561,7]
[365176771,1749514252113,-151.0,0.00023561,7]
[365176772,1749514252122,-287.080415,0.00023561,7]
[365176773,1749514252132,-2062.56683271,0.00023561,3]
[365176774,1749514252142,-287.080415,0.00023561,7]
[365176775,1749514252154,-200.0,0.00023561,4]
[365176776,1749514252165,-150.61138,0.00023561,4]
[365176777,1749514252175,-2500.0,0.00023564,2]
[365176778,1749514252185,-168.0,0.00023592,2]
[365176779,1749514252195,-168.0,0.00023598,2]
[365176780,1749514252204,-834.7738823,0.000236,3]
[365176781,1749514252214,-207.0,0.0002362,2]
[365176782,1749514252224,-150.0,0.00023621,2]
[365176783,1749514252234,-150.0,0.00023621,2]
[365176784,1749514252243,-242.133,0.00023621,2]
[365176785,1749514252253,-196.942,0.00023621,2]
[365176786,1749514252263,-150.79,0.00023621,2]
[365176787,1749514252272,-154.88,0.00023621,2]
[365176788,1749514252282,-150.0,0.00023621,2]
[365176789,1749514252291,-963.0,0.00023621,2]
[365176790,1749514252301,-2159.0,0.00023621,2]
[365176791,1749514252311,-653.0,0.00023621,2]
[365176792,1749514252320,-2756.0,0.00023648,2]
[365176793,1749514252330,-709.99682384,0.00023659,9]
[365176794,1749514252339,-2756.0,0.00023665,2]
[365176795,1749514252349,-500.0,0.00023676,2]
[365176796,1749514252358,-1000.0,0.00023682,10]
[365176797,1749514252368,-500.0,0.00023682,2]
[365176798,1749514252378,-506.37088155,0.00023682,2]
[365176799,1749514252387,-5423.0,0.000237,3]
[365176800,1749514252398,-5423.0,0.000237,3]
[365176801,1749514252410,-5423.0,0.000237,3]
[365176802,1749514252419,-5423.0,0.000237,3]
[365176803,1749514252428,-5423.0,0.000237,3]
[365176804,1749514252438,-5423.0,0.000237,3]
[365176805,1749514252448,-5423.0,0.000237,3]
[365176806,1749514252457,-5423.0,0.000237,3]
[365176807,1749514252467,-5423.0,0.000237,3]
[365176808,1749514252476,-5423.0,0.000237,3]
[365176809,1749514252487,-151.0,0.000237,7]
[365176810,1749514252496,-151.0,0.000237,7]
[365176811,1749514252506,-151.0,0.000237,7]
[365176812,1749514252516,-287.080415,0.000237,7]
[365176813,1749514252526,-287.080415,0.000237,7]
[365176814,1749514252535,-1239.56190097,0.000237,2]
[365176815,1749514252545,-834.7738823,0.000237,3]
[365176816,1749514252556,-5888.0,0.00023704,2]
[365176817,1749514252565,-151.0,0.00023704,7]
[365176818,1749514252575,-151.0,0.00023704,7]
[365176819,1749514252585,-287.080415,0.00023704,7]
[365176820,1749514252594,-287.080415,0.00023704,7]
[365176821,1749514252603,-168.0,0.0002371,2]
[365176822,1749514252612,-1000.0,0.0002376,2]
[365176823,1749514252622,-709.99682384,0.00023762,9]
[365176824,1749514252631,-168.0,0.00023772,2]
[365176825,1749514252642,-168.0,0.00023776,2]
[365176826,1749514252652,-4522.15316645,0.0002378,5]
[365176827,1749514252774,-2507.75,0.0002378,5]
[365176828,1749514351126,200.0,0.00023436,120]
[365176852,1749514591632,200.0,0.00023469,120]
[365176866,1749514651278,200.0,0.00024102,120]
[365176883,1749514711271,200.0,0.00023444,120]
[365176910,1749514771636,200.0,0.00023997,120]
[365176933,1749514968126,1707.72554213,0.00017999,2]
[365176956,1749515357321,177.3728714,0.00013699,2]
[365177036,1749515432743,-5000.0,0.00019861,2]
[365177103,1749515433256,-174.71491755,0.00020214,2]
[365177105,1749515433267,-691.77,0.00020314,2]
[365177107,1749515433278,-1200.0,0.00020348,2]
[365177109,1749515433288,-300.0,0.00020349,2]
[365177111,1749515433298,-300.0,0.00020349,2]
[365177113,1749515433308,-300.0,0.00020349,2]
[365177115,1749515433319,-300.0,0.00020349,2]
[365177117,1749515433328,-300.0,0.00020349,2]
[365177118,1749515433338,-10000.0,0.0002035,2]
[365177120,1749515433348,-1848.02031357,0.00020896,2]
[365177122,1749515433358,-159.24411284,0.00021262,2]
[365177124,1749515433368,-174.71491754,0.00021262,2]
[365177126,1749515433378,-1383.54,0.00021282,2]
[365177128,1749515433388,-207.4,0.00021315,2]
[365177130,1749515433400,-994.0558175,0.00021315,2]
[365177132,1749515433410,-5000.0,0.00021315,2]
[365177134,1749515433422,-300.0,0.00021348,2]
[365177136,1749515433432,-187.64720845,0.00021351,2]
[365177138,1749515433442,-189.2484,0.00021351,2]
[365177139,1749515433452,-3722.26033333,0.00021352,2]
[365177141,1749515433464,-173.11,0.00021352,2]
[365177143,1749515433477,-430.0,0.00021361,4]
[365177145,1749515433488,-204.04723304,0.00021361,4]
[365177147,1749515433499,-361.26460871,0.00021361,4]
[365177149,1749515433509,-460.0,0.00021361,4]
[365177151,1749515433519,-183.695,0.00021362,2]
[365177153,1749515433530,-410.0,0.00021362,4]
[365177155,1749515433540,-440.0,0.00021362,4]
[365177157,1749515433551,-400.0,0.00021362,4]
[365177158,1749515433560,-420.0,0.00021362,4]
[365177160,1749515433571,-440.0,0.00021362,4]
[365177162,1749515433581,-440.0,0.00021362,4]
[365177164,1749515433591,-440.0,0.00021362,4]
[365177166,1749515433601,-410.0,0.00021362,4]
[365177168,1749515433611,-440.0,0.00021362,4]
[365177170,1749515433621,-378.92054944,0.00021362,4]
[365177172,1749515433630,-430.0,0.00021362,4]
[365177173,1749515433640,-460.0,0.00021362,4]
[365177175,1749515433650,-430.0,0.00021362,4]
[365177177,1749515433660,-440.0,0.00021362,4]
[365177179,1749515433671,-440.0,0.00021362,4]
[365177181,1749515433682,-440.0,0.00021362,4]
[365177183,1749515433692,-440.0,0.00021362,4]
[365177185,1749515433702,-440.0,0.00021362,4]
[365177187,1749515433712,-440.0,0.00021362,4]
[365177189,1749515433722,-337.02880205,0.00021362,4]
[365177191,1749515433731,-440.0,0.00021362,4]
[365177192,1749515433741,-440.0,0.00021362,4]
[365177194,1749515433751,-440.0,0.00021362,4]
[365177195,1749515433761,-440.0,0.00021362,4]
[365177197,1749515433771,-460.0,0.00021362,4]
[365177199,1749515433781,-440.0,0.00021362,4]
[365177201,1749515433790,-440.0,0.00021362,4]
[365177202,1749515433800,-460.0,0.00021362,4]
[365177204,1749515433811,-460.0,0.00021362,4]
[365177206,1749515433821,-440.0,0.00021362,4]
[365177208,1749515433831,-460.0,0.00021362,4]
[365177210,1749515433841,-460.0,0.00021362,4]
[365177213,1749515433851,-440.0,0.00021362,4]
[365177214,1749515433862,-360.0,0.00021362,4]
[365177216,1749515433871,-602.38974434,0.00021362,4]
[365177218,1749515433882,-440.0,0.00021362,4]
[365177219,1749515433892,-440.0,0.00021362,4]
[365177220,1749515433903,-460.0,0.00021362,4]
[365177221,1749515433913,-440.0,0.00021362,4]
[365177222,1749515433928,-440.0,0.00021362,4]
[365177223,1749515433938,-500.0,0.00021362,4]
[365177224,1749515433949,-500.0,0.00021362,4]
[365177225,1749515433959,-500.0,0.00021362,4]
[365177226,1749515433969,-460.0,0.00021362,4]
[365177227,1749515433979,-507.16885325,0.00021362,4]
[365177228,1749515433989,-410.0,0.00021362,4]
[365177229,1749515434000,-460.0,0.00021362,4]
[365177230,1749515434010,-460.0,0.00021362,4]
[365177231,1749515434020,-440.0,0.00021362,4]
[365177232,1749515434030,-413.29933048,0.00021362,4]
[365177233,1749515434040,-460.0,0.00021362,4]
[365177234,1749515434051,-440.0,0.00021362,4]
[365177235,1749515434062,-440.0,0.00021362,4]
[365177236,1749515434072,-460.0,0.00021362,4]
[365177237,1749515434082,-424.91056021,0.00021362,4]
[365177238,1749515434092,-440.0,0.00021362,4]
[365177239,1749515434103,-440.0,0.00021362,4]
[365177240,1749515434113,-291.15789632,0.00021362,4]
[365177241,1749515434123,-460.0,0.00021362,4]
[365177242,1749515434133,-460.0,0.00021362,4]
[365177243,1749515434143,-253.12376904,0.00021362,4]
[365177244,1749515434153,-460.0,0.00021362,4]
[365177245,1749515434163,-440.0,0.00021362,4]
[365177246,1749515434176,-380.0,0.00021362,4]
[365177247,1749515434185,-420.0,0.00021362,4]
[365177248,1749515434195,-460.0,0.00021362,4]
[365177249,1749515434205,-460.0,0.00021362,4]
[365177250,1749515434215,-440.0,0.00021362,4]
[365177251,1749515434224,-440.0,0.00021362,4]
[365177252,1749515434234,-460.0,0.00021362,4]
[365177253,1749515434246,-215.57,0.00021362,4]
[365177254,1749515434256,-282.72482161,0.00021362,4]
[365177255,1749515434266,-413.20175949,0.00021362,4]
[365177256,1749515434276,-460.0,0.00021362,4]
[365177257,1749515434286,-419.05004746,0.00021362,4]
[365177258,1749515434296,-420.0,0.00021362,4]
[365177259,1749515434306,-460.0,0.00021362,4]
[365177260,1749515434315,-460.0,0.00021362,4]
[365177261,1749515434325,-397.93024049,0.00021362,4]
[365177262,1749515434335,-440.0,0.00021362,4]
[365177263,1749515434345,-440.0,0.00021362,4]
[365177264,1749515434355,-440.0,0.00021362,4]
[365177266,1749515434365,-460.0,0.00021362,4]
[365177267,1749515434375,-440.0,0.00021362,4]
[365177269,1749515434385,-460.0,0.00021362,4]
[365177270,1749515434395,-460.0,0.00021362,4]
[365177272,1749515434405,-440.0,0.00021362,4]
[365177273,1749515434415,-460.0,0.00021362,4]
[365177275,1749515434428,-335.90702769,0.00021362,4]
[365177277,1749515434438,-460.0,0.00021362,4]
[365177279,1749515434448,-443.402529,0.00021362,4]
[365177281,1749515434459,-440.0,0.00021362,4]
[365177284,1749515434472,-460.0,0.00021362,4]
[365177286,1749515434482,-460.0,0.00021362,4]
[365177288,1749515434492,-460.0,0.00021362,4]
[365177289,1749515434503,-460.0,0.00021362,4]
[365177292,1749515434514,-460.0,0.00021362,4]
[365177294,1749515434524,-440.0,0.00021362,4]
[365177296,1749515434534,-439.0,0.00021362,4]
[365177298,1749515434544,-161.81875033,0.00021362,4]
[365177300,1749515434555,-460.0,0.00021362,4]
[365177302,1749515434564,-460.0,0.00021362,4]
[365177304,1749515434573,-440.0,0.00021362,4]
[365177306,1749515434583,-460.0,0.00021362,4]
[365177308,1749515434592,-385.6649069,0.00021362,4]
[365177310,1749515434601,-460.0,0.00021362,4]
[365177324,1749515434727,-440.0,0.00021362,4]
[365177326,1749515434737,-440.0,0.00021362,4]
[365177328,1749515434746,-440.0,0.00021362,4]
[365177330,1749515434755,-440.0,0.00021362,4]
[365177331,1749515434764,-440.0,0.00021362,4]
[365177333,1749515434773,-440.0,0.00021362,4]
[365177335,1749515434782,-361.88937681,0.00021362,4]
[365177337,1749515434791,-440.0,0.00021362,4]
[365177339,1749515434801,-440.0,0.00021362,4]
[365177342,1749515434810,-440.0,0.00021362,4]
[365177343,1749515434819,-410.0,0.00021362,4]
[365177345,1749515434828,-460.0,0.00021362,4]
[365177347,1749515434838,-440.0,0.00021362,4]
[365177349,1749515434847,-460.0,0.00021362,4]
[365177351,1749515434856,-460.0,0.00021362,4]
[365177353,1749515434865,-460.0,0.00021362,4]
[365177355,1749515434875,-460.0,0.00021362,4]
[365177357,1749515434884,-440.0,0.00021362,4]
[365177359,1749515434894,-440.0,0.00021362,4]
[365177361,1749515434903,-460.0,0.00021362,4]
[365177363,1749515434912,-608.64,0.00021362,4]
[365177365,1749515434924,-440.0,0.00021362,4]
[365177367,1749515434934,-460.0,0.00021362,4]
[365177368,1749515434943,-460.0,0.00021362,4]
[365177371,1749515434954,-460.0,0.00021362,4]
[365177372,1749515434964,-440.0,0.00021362,4]
[365177374,1749515434973,-460.0,0.00021362,4]
[365177376,1749515434983,-371.65732547,0.00021362,4]
[365177378,1749515434992,-460.0,0.00021362,4]
[365177380,1749515435002,-460.0,0.00021362,4]
[365177382,1749515435011,-460.0,0.00021362,4]
[365177384,1749515435021,-460.0,0.00021362,4]
[365177386,1749515435031,-460.0,0.00021362,4]
[365177388,1749515435040,-440.0,0.00021362,4]
[365177390,1749515435050,-312.87,0.00021362,4]
[365177392,1749515435060,-460.0,0.00021362,4]
[365177394,1749515435069,-430.0,0.00021362,4]
[365177396,1749515435081,-460.0,0.00021362,4]
[365177397,1749515435090,-460.0,0.00021362,4]
[365177398,1749515435100,-460.0,0.00021362,4]
[365177400,1749515435109,-440.0,0.00021362,4]
[365177402,1749515435118,-440.0,0.00021362,4]
[365177404,1749515435128,-460.0,0.00021362,4]
[365177406,1749515435137,-460.0,0.00021362,4]
[365177408,1749515435146,-460.0,0.00021362,4]
[365177410,1749515435157,-511.92273979,0.00021362,4]
[365177412,1749515435166,-460.0,0.00021362,4]
[365177414,1749515435178,-460.0,0.00021362,4]
[365177416,1749515435187,-460.0,0.00021362,4]
[365177418,1749515435196,-410.0,0.00021362,4]
[365177420,1749515435206,-460.0,0.00021362,4]
[365177422,1749515435215,-460.0,0.00021362,4]
[365177424,1749515435224,-152.52403429,0.00021362,4]
[365177426,1749515435234,-460.0,0.00021362,4]
[365177428,1749515435243,-460.0,0.00021362,4]
[365177429,1749515435253,-460.0,0.00021362,4]
[365177431,1749515435263,-460.0,0.00021362,4]
[365177433,1749515435272,-440.0,0.00021362,4]
[365177436,1749515435282,-460.0,0.00021362,4]
[365177437,1749515435292,-440.0,0.00021362,4]
[365177439,1749515435301,-440.0,0.00021362,4]
[365177441,1749515435312,-460.0,0.00021362,4]
[365177443,1749515435322,-460.0,0.00021362,4]
[365177445,1749515435332,-440.0,0.00021362,4]
[365177447,1749515435341,-460.0,0.00021362,4]
[365177449,1749515435351,-460.0,0.00021362,4]
[365177451,1749515435360,-517.65809049,0.00021362,4]
[365177453,1749515435370,-460.0,0.00021362,4]
[365177455,1749515435380,-460.0,0.00021362,4]
[365177457,1749515435389,-381.76793635,0.00021362,4]
[365177459,1749515435399,-440.0,0.00021362,4]
[365177461,1749515435408,-460.0,0.00021362,4]
[365177463,1749515435418,-380.0,0.00021362,4]
[365177466,1749515435430,-440.0,0.00021362,4]
[365177468,1749515435440,-460.0,0.00021362,4]
[365177470,1749515435449,-460.0,0.00021362,4]
[365177471,1749515435460,-460.0,0.00021362,4]
[365177472,1749515435470,-440.0,0.00021362,4]
[365177473,1749515435482,-460.0,0.00021362,4]
[365177474,1749515435492,-442.58782504,0.00021362,4]
[365177475,1749515435503,-440.0,0.00021362,4]
[365177476,1749515435512,-440.0,0.00021362,4]
[365177477,1749515435521,-460.0,0.00021362,4]
[365177478,1749515435531,-440.0,0.00021362,4]
[365177479,1749515435540,-460.0,0.00021362,4]
[365177480,1749515435552,-460.0,0.00021362,4]
[365177481,1749515435562,-420.0,0.00021362,4]
[365177482,1749515435571,-404.86649742,0.00021362,4]
[365177483,1749515435581,-440.0,0.00021362,4]
[365177484,1749515435591,-460.0,0.00021362,4]
[365177485,1749515435600,-460.0,0.00021362,4]
[365177486,1749515435610,-440.0,0.00021362,4]
[365177487,1749515435619,-460.0,0.00021362,4]
[365177488,1749515435629,-460.0,0.00021362,4]
[365177489,1749515435639,-460.0,0.00021362,4]
[365177490,1749515435648,-440.0,0.00021362,4]
[365177491,1749515435658,-460.0,0.00021362,4]
[365177492,1749515435668,-460.0,0.00021362,4]
[365177493,1749515435679,-460.0,0.00021362,4]
[365177494,1749515435689,-479.28454572,0.00021362,4]
[365177495,1749515435698,-460.0,0.00021362,4]
[365177496,1749515435708,-430.0,0.00021362,4]
[365177497,1749515435719,-430.0,0.00021362,4]
[365177498,1749515435728,-460.0,0.00021362,4]
[365177499,1749515435737,-440.0,0.00021362,4]
[365177500,1749515435746,-460.0,0.00021362,4]
[365177501,1749515435755,-460.0,0.00021362,4]
[365177502,1749515435766,-460.0,0.00021362,4]
[365177503,1749515435775,-460.0,0.00021362,4]
[365177504,1749515435784,-460.0,0.00021362,4]
[365177505,1749515435794,-460.0,0.00021362,4]
[365177506,1749515435805,-460.0,0.00021362,4]
[365177507,1749515435815,-439.92096667,0.00021362,4]
[365177508,1749515435825,-420.0,0.00021362,4]
[365177509,1749515435835,-460.0,0.00021362,4]
[365177510,1749515435844,-460.0,0.00021362,4]
[365177511,1749515435854,-460.0,0.00021362,4]
[365177512,1749515435864,-420.0,0.00021362,4]
[365177513,1749515435873,-460.0,0.00021362,4]
[365177514,1749515435883,-460.0,0.00021362,4]
[365177515,1749515435893,-330.90097096,0.00021362,4]
[365177516,1749515435902,-460.0,0.00021362,4]
[365177517,1749515435911,-460.0,0.00021362,4]
[365177518,1749515435923,-460.0,0.00021362,4]
[365177519,1749515435932,-1109.03,0.00021362,4]
[365177520,1749515435941,-460.0,0.00021362,4]
[365177521,1749515435950,-440.0,0.00021362,4]
[365177522,1749515435959,-460.0,0.00021362,4]
[365177523,1749515435969,-451.44192296,0.00021362,4]
[365177524,1749515435978,-440.0,0.00021362,4]
[365177525,1749515435987,-442.73193462,0.00021362,4]
[365177526,1749515435998,-356.3573306,0.00021362,4]
[365177527,1749515436009,-461.7281109,0.00021362,4]
[365177528,1749515436018,-473.54694317,0.00021362,4]
[365177529,1749515436028,-460.0,0.00021362,4]
[365177530,1749515436037,-3111.76,0.00021362,4]
[365177531,1749515436047,-772.62,0.00021362,4]
[365177532,1749515436056,-430.0,0.00021362,4]
[365177533,1749515436065,-450.68212147,0.00021362,4]
[365177534,1749515436075,-460.0,0.00021362,2]
[365177535,1749515436084,-460.0,0.00021362,4]
[365177536,1749515436094,-460.0,0.00021362,4]
[365177537,1749515436103,-460.0,0.00021362,4]
[365177538,1749515436113,-753.57,0.00021362,4]
[365177539,1749515436122,-460.0,0.00021362,4]
[365177540,1749515436131,-440.0,0.00021362,4]
[365177541,1749515436141,-460.0,0.00021362,4]
[365177542,1749515436150,-545.34,0.00021362,4]
[365177543,1749515436159,-440.0,0.00021362,4]
[365177544,1749515436169,-490.41197676,0.00021362,4]
[365177545,1749515436179,-460.0,0.00021362,4]
[365177546,1749515436188,-343.06438386,0.00021362,4]
[365177547,1749515436197,-460.0,0.00021362,4]
[365177548,1749515436207,-460.0,0.00021362,4]
[365177549,1749515436216,-460.0,0.00021362,4]
[365177550,1749515436225,-440.0,0.00021362,4]
[365177551,1749515436235,-430.0,0.00021362,4]
[365177552,1749515436244,-460.0,0.00021362,4]
[365177553,1749515436253,-460.0,0.00021362,4]
[365177554,1749515436263,-1069.12,0.00021362,4]
[365177555,1749515436273,-440.0,0.00021362,4]
[365177556,1749515436283,-460.0,0.00021362,4]
[365177557,1749515436292,-722.86,0.00021362,4]
[365177558,1749515436301,-460.0,0.00021362,4]
[365177559,1749515436311,-460.0,0.00021362,4]
[365177560,1749515436320,-430.0,0.00021362,4]
[365177561,1749515436329,-712.12,0.00021362,4]
[365177562,1749515436339,-810.9,0.00021362,4]
[365177563,1749515436348,-460.0,0.00021362,4]
[365177564,1749515436358,-411.21789978,0.00021362,4]
[365177565,1749515436367,-440.0,0.00021362,4]
[365177566,1749515436377,-430.0,0.00021362,4]
[365177567,1749515436387,-440.0,0.00021362,4]
[365177568,1749515436398,-605.02,0.00021362,4]
[365177569,1749515436407,-460.0,0.00021362,4]
[365177570,1749515436416,-440.0,0.00021362,4]
[365177571,1749515436427,-460.0,0.00021362,4]
[365177572,1749515436436,-506.56287931,0.00021363,4]
[365177573,1749515436446,-500.0,0.00021364,2]
[365177574,1749515436455,-160.0,0.00021364,2]
[365177575,1749515436469,-500.0,0.00021373,2]
[365177576,1749515436479,-500.0,0.00021373,2]
[365177577,1749515436489,-500.0,0.00021373,2]
[365177578,1749515436498,-500.0,0.00021373,2]
[365177579,1749515436509,-500.0,0.00021373,2]
[365177580,1749515436518,-500.0,0.00021373,2]
[365177581,1749515436529,-500.0,0.00021373,2]
[365177582,1749515436539,-830.63,0.000214,2]
[365177583,1749515436548,-650.33416964,0.00021527,2]
[365177584,1749515436558,-464.92183029,0.00021613,2]
[365177585,1749515436568,-500.0,0.00021613,2]
[365177586,1749515436577,-173.11,0.00021626,2]
[365177587,1749515436587,-610.21,0.00021626,3]
[365177588,1749515436596,-500.0,0.00021627,2]
[365177589,1749515436607,-500.0,0.00021627,2]
[365177590,1749515436617,-500.0,0.00021627,2]
[365177591,1749515436627,-345.5492591,0.00021635,2]
[365177592,1749515436637,-500.0,0.00021635,2]
[365177593,1749515436646,-500.0,0.00021635,2]
[365177594,1749515436666,-500.0,0.00021635,2]
[365177595,1749515436677,-546.24941332,0.00021635,2]
[365177596,1749515436687,-500.0,0.00021635,2]
[365177597,1749515436697,-500.0,0.00021635,2]
[365177598,1749515436707,-500.0,0.00021635,2]
[365177599,1749515436717,-460.0,0.00021635,4]
[365177600,1749515436728,-460.0,0.00021636,4]
[365177601,1749515436738,-420.0,0.00021636,4]
[365177602,1749515436748,-420.0,0.00021636,4]
[365177603,1749515436758,-447.55,0.00021636,4]
[365177604,1749515436768,-420.0,0.00021636,4]
[365177605,1749515436778,-420.0,0.00021636,4]
[365177606,1749515436788,-420.0,0.00021636,4]
[365177607,1749515436800,-410.0,0.00021636,4]
[365177608,1749515436813,-420.0,0.00021636,4]
[365177609,1749515436823,-420.0,0.00021636,4]
[365177610,1749515436833,-392.84509774,0.00021636,4]
[365177611,1749515436842,-420.0,0.00021636,4]
[365177612,1749515436852,-410.0,0.00021636,4]
[365177613,1749515436861,-420.0,0.00021636,4]
[365177614,1749515436871,-420.0,0.00021636,4]
[365177615,1749515436880,-420.0,0.00021636,4]
[365177616,1749515436890,-410.0,0.00021636,4]
[365177617,1749515436900,-420.0,0.00021636,4]
[365177618,1749515436909,-420.0,0.00021636,4]
[365177619,1749515436919,-420.0,0.00021636,4]
[365177620,1749515436931,-460.0,0.00021636,4]
[365177621,1749515436940,-460.0,0.00021636,4]
[365177622,1749515436949,-376.11699442,0.00021636,4]
[365177623,1749515436958,-460.0,0.00021636,4]
[365177624,1749515436968,-420.0,0.00021636,4]
[365177625,1749515436977,-420.0,0.00021636,4]
[365177626,1749515436987,-420.0,0.00021636,4]
[365177627,1749515436998,-420.0,0.00021636,4]
[365177628,1749515437007,-412.79443638,0.00021636,4]
[365177629,1749515437017,-420.0,0.00021636,4]
[365177630,1749515437026,-451.18909534,0.00021636,4]
[365177631,1749515437036,-420.0,0.00021636,4]
[365177632,1749515437047,-420.0,0.00021636,4]
[365177633,1749515437056,-349.65346537,0.00021636,4]
[365177634,1749515437065,-420.0,0.00021636,4]
[365177635,1749515437075,-460.0,0.00021636,4]
[365177636,1749515437084,-319.91204096,0.00021636,4]
[365177637,1749515437094,-420.0,0.00021636,4]
[365177638,1749515437104,-380.0,0.00021636,4]
[365177639,1749515437113,-460.0,0.00021636,4]
[365177640,1749515437123,-153.86117326,0.00021636,4]
[365177641,1749515437132,-460.0,0.00021636,4]
[365177642,1749515437141,-420.0,0.00021636,4]
[365177643,1749515437151,-420.0,0.00021636,4]
[365177644,1749515437160,-420.0,0.00021636,4]
[365177645,1749515437169,-420.0,0.00021636,4]
[365177646,1749515437181,-460.0,0.00021636,4]
[365177647,1749515437191,-476.2,0.00021636,4]
[365177648,1749515437200,-420.0,0.00021636,4]
[365177649,1749515437209,-460.0,0.00021636,4]
[365177650,1749515437218,-203.85491704,0.00021636,4]
[365177651,1749515437228,-382.027105,0.00021636,4]
[365177652,1749515437349,-410.0,0.00021636,4]
[365177653,1749515437369,-310.0,0.00021636,4]
[365177654,1749515437379,-420.0,0.00021636,4]
[365177655,1749515437388,-420.0,0.00021636,4]